{"text_format":"1","workbook":"xlsx","n_sheets":3,"sheets":["الفاتورة","Demandes","Facteur"],"not_rendered":{"charts":0,"images":0,"macros":1,"external_links":0,"defined_names":5,"comments":0,"pivot_tables":0},"unopened":[],"bounds":{"document_bytes":16777216,"sheet_cells":100000,"rows_first":2000,"rows_last":500,"rows_between":2000,"halvings":0,"cell_chars":16384,"cell_head_chars":4096},"cells_cut":0,"cells_raw":0,"read":"whole","date_system":"1900"}

{"sheet":"الفاتورة","index":0,"n_rows":19,"n_cols":4,"rows_kept":19,"cut":false,"hidden":true,"merged":[[6,1,6,2],[1,0,1,3],[2,1,2,2],[3,0,3,3],[4,1,4,2]]}
[]
["مؤسسة عالم الكمبيوتر"]
[null,"الرقم الضريبي"]
[70001414445559]
[null,"الوردية",null,1]
["رقم الفاتورة",1001]
["التاريخ","2019-01-01"]
["البائع","علي"]
["العميل","عميل نقدي"]
[]
["الوصف","الكمية","سعر","الإجمالي"]
["شاشة 19 بوصة",1,220,{"$f":"B12*C12","v":220}]
["لوحة مفاتيح",1,40,{"$f":"B13*C13","v":40}]
["هاردسك خارجي",1,164,164]
["خصم",1,-4,-4]
[]
["المبلغ الإجمالي",null,null,{"$f":"SUM(D12:D16)","v":420}]
["ضريبة القيمة المضافة",null,null,{"$f":"D17*0.05","v":21}]
["الإجمالي شامل الضريبة",null,null,{"$f":"D18+D17","v":441}]

{"sheet":"Demandes","index":1,"n_rows":31,"n_cols":6,"rows_kept":31,"cut":false,"hidden":false,"merged":[]}
["رقم الفاتورة","التاريخ","الوصف","الكمية","سعر","الإجمالي"]
[1001,"2019-01-01","شاشة 19 بوصة",1,220,{"$f":"D2*E2","v":220}]
[1001,"2019-01-01","لوحة مفاتيح",1,40,{"$f":"D3*E3","v":40}]
[1001,"2019-01-01","هاردسك خارجي",1,164,164]
[1001,"2019-01-01","خصم",1,-4,-4]
[1002,"2019-01-01","هارسك SSD كينجستون",1,295,295]
[1002,"2019-01-01","خصم",1,-5,-5]
[1003,"2019-02-01","ماوس لوجيتك",2,195,390]
[1003,"2019-02-01","لوحة مفاتيح كورسير",1,450,450]
[1003,"2019-02-01","فلاش يو اس بي ",3,39,117]
[1003,"2019-02-01","خصم",1,-9,{"$f":"D11*E11","v":-9}]
[1004,"2019-03-01","سماعات بلوتوث R470",3,140,420]
[1004,"2019-03-01","لاب توب لينوفو 1 تيرا",1,1500,1500]
[1004,"2019-03-01","ماوس لاسلكي ",1,50,50]
[1004,"2019-03-01","فلاش يو اس بي ",4,45,180]
[1004,"2019-03-01","كيبل طابعة 3 متر",2,15,30]
[1004,"2019-03-01","هاردسك SSD ",1,400,400]
[1004,"2019-03-01","ماوس لوجيتك",1,100,100]
[1004,"2019-03-01","لوحة مفاتيح ديل",1,60,60]
[1004,"2019-03-01","شاشة 19 بوسة سامسونج",1,170,170]
[1004,"2019-03-01","ماوس لاسلكي ",1,50,50]
[1004,"2019-03-01","فلاش يو اس بي ",4,45,180]
[1004,"2019-03-01","كيبل طابعة 3 متر",2,15,30]
[1004,"2019-03-01","هاردسك SSD ",1,400,400]
[1004,"2019-03-01","ماوس لوجيتك",1,100,100]
[1004,"2019-03-01","لوحة مفاتيح ديل",1,60,60]
[1004,"2019-03-01","راوتر لينكسس",2,90,180]
[1004,"2019-03-01","كيبل شبكة ",100,3,300]
[1004,"2019-03-01","توصيلة كهربائية 5 متر",2,5,10]
[1004,"2019-03-01","طابعة ليزر HP",2,1400,2800]
[1004,"2019-03-01","ماسح ضوئي ايبسون",1,240,240]

{"sheet":"Facteur","index":2,"n_rows":96,"n_cols":13,"rows_kept":96,"cut":false,"hidden":false,"merged":[]}
[null,null,null,"قيمة الضريبة"]
["مؤسسة عالم الكمبيوتر",null,null,5,null,null,null,"مؤسسة عالم الكمبيوتر"]
["الرقم الضريبي",null,null,null,null,null,null,"الرقم الضريبي"]
[70001414445559,null,null,null,null,null,null,70001414445559]
["الوردية",null,null,null,"حدد الضريبة من هنا",null,null,"الوردية"]
["رقم الفاتورة",1001,null,null,null,null,null,"رقم الفاتورة",1001]
["التاريخ","2019-01-01",null,null,null,null,null,"التاريخ","2019-01-01"]
["البائع","علي",null,null,null,null,null,"البائع","علي"]
["العميل","عميل نقدي",null,null,null,null,null,"العميل","عميل نقدي"]
[]
["الوصف","الكمية","سعر","الإجمالي",null,null,null,"رقم الفاتورة","التاريخ","الوصف","الكمية","سعر","الإجمالي"]
["شاشة 19 بوصة",1,220,{"$f":"B12*C12","v":220},null,null,null,1001,"2019-01-01","شاشة 19 بوصة",1,220,220]
["لوحة مفاتيح",1,40,{"$f":"B13*C13","v":40},null,null,null,1001,"2019-01-01","لوحة مفاتيح",1,40,40]
["هاردسك خارجي",1,164,164,null,null,null,1001,"2019-01-01","هاردسك خارجي",1,164,164]
["خصم",1,-4,-4,null,null,null,1001,"2019-01-01","خصم",1,-4,-4]
[]
["المبلغ الإجمالي",null,null,{"$f":"SUM(D12:D16)","v":420},null,null,null,"المبلغ الإجمالي",null,null,null,null,420]
["ضريبة القيمة المضافة",null,null,{"$f":"D17*0.05","v":21},null,null,null,"ضريبة القيمة المضافة",null,null,null,null,21]
["الإجمالي شامل الضريبة",null,null,{"$f":"D18+D17","v":441},null,null,null,"الإجمالي شامل الضريبة",null,null,null,null,441]
[]
[]
[]
[null,null,null,null,null,null,null,"مؤسسة عالم الكمبيوتر"]
[null,null,null,null,null,null,null,"الرقم الضريبي"]
[null,null,null,null,null,null,null,70001414445559]
[null,null,null,null,null,null,null,"الوردية"]
[null,null,null,null,null,null,null,"رقم الفاتورة",1002]
[null,null,null,null,null,null,null,"التاريخ","2019-01-01"]
[null,null,null,null,null,null,null,"البائع","علي"]
[null,null,null,null,null,null,null,"العميل","عميل نقدي"]
[]
[null,null,null,null,null,null,null,"رقم الفاتورة","التاريخ","الوصف","الكمية","سعر","الإجمالي"]
[null,null,null,null,null,null,null,1002,"2019-01-01","هارسك SSD كينجستون",1,295,295]
[null,null,null,null,null,null,null,1002,"2019-01-01","خصم",1,-5,-5]
[]
[null,null,null,null,null,null,null,"المبلغ الإجمالي",null,null,null,null,290]
[null,null,null,null,null,null,null,"ضريبة القيمة المضافة",null,null,null,null,14.5]
[null,null,null,null,null,null,null,"الإجمالي شامل الضريبة",null,null,null,null,304.5]
[]
[]
[]
[null,null,null,null,null,null,null,"مؤسسة عالم الكمبيوتر"]
[null,null,null,null,null,null,null,"الرقم الضريبي"]
[null,null,null,null,null,null,null,70001414445559]
[null,null,null,null,null,null,null,"الوردية"]
[null,null,null,null,null,null,null,"رقم الفاتورة",1003]
[null,null,null,null,null,null,null,"التاريخ","2019-02-01"]
[null,null,null,null,null,null,null,"البائع","علي"]
[null,null,null,null,null,null,null,"العميل","عميل نقدي"]
[]
[null,null,null,null,null,null,null,"رقم الفاتورة","التاريخ","الوصف","الكمية","سعر","الإجمالي"]
[null,null,null,null,null,null,null,1003,"2019-02-01","ماوس لوجيتك",2,195,390]
[null,null,null,null,null,null,null,1003,"2019-02-01","لوحة مفاتيح كورسير",1,450,450]
[null,null,null,null,null,null,null,1003,"2019-02-01","فلاش يو اس بي ",3,39,117]
[null,null,null,null,null,null,null,1003,"2019-02-01","خصم",1,-9,-9]
[]
[null,null,null,null,null,null,null,"المبلغ الإجمالي",null,null,null,null,948]
[null,null,null,null,null,null,null,"ضريبة القيمة المضافة",null,null,null,null,47.4]
[null,null,null,null,null,null,null,"الإجمالي شامل الضريبة",null,null,null,null,995.4]
[]
[]
[]
[null,null,null,null,null,null,null,"مؤسسة عالم الكمبيوتر"]
[null,null,null,null,null,null,null,"الرقم الضريبي"]
[null,null,null,null,null,null,null,70001414445559]
[null,null,null,null,null,null,null,"الوردية"]
[null,null,null,null,null,null,null,"رقم الفاتورة",1004]
[null,null,null,null,null,null,null,"التاريخ","2019-03-01"]
[null,null,null,null,null,null,null,"البائع","علي"]
[null,null,null,null,null,null,null,"العميل","عميل نقدي"]
[]
[null,null,null,null,null,null,null,"رقم الفاتورة","التاريخ","الوصف","الكمية","سعر","الإجمالي"]
[null,null,null,null,null,null,null,1004,"2019-03-01","سماعات بلوتوث R470",3,140,420]
[null,null,null,null,null,null,null,1004,"2019-03-01","لاب توب لينوفو 1 تيرا",1,1500,1500]
[null,null,null,null,null,null,null,1004,"2019-03-01","ماوس لاسلكي ",1,50,50]
[null,null,null,null,null,null,null,1004,"2019-03-01","فلاش يو اس بي ",4,45,180]
[null,null,null,null,null,null,null,1004,"2019-03-01","كيبل طابعة 3 متر",2,15,30]
[null,null,null,null,null,null,null,1004,"2019-03-01","هاردسك SSD ",1,400,400]
[null,null,null,null,null,null,null,1004,"2019-03-01","ماوس لوجيتك",1,100,100]
[null,null,null,null,null,null,null,1004,"2019-03-01","لوحة مفاتيح ديل",1,60,60]
[null,null,null,null,null,null,null,1004,"2019-03-01","شاشة 19 بوسة سامسونج",1,170,170]
[null,null,null,null,null,null,null,1004,"2019-03-01","ماوس لاسلكي ",1,50,50]
[null,null,null,null,null,null,null,1004,"2019-03-01","فلاش يو اس بي ",4,45,180]
[null,null,null,null,null,null,null,1004,"2019-03-01","كيبل طابعة 3 متر",2,15,30]
[null,null,null,null,null,null,null,1004,"2019-03-01","هاردسك SSD ",1,400,400]
[null,null,null,null,null,null,null,1004,"2019-03-01","ماوس لوجيتك",1,100,100]
[null,null,null,null,null,null,null,1004,"2019-03-01","لوحة مفاتيح ديل",1,60,60]
[null,null,null,null,null,null,null,1004,"2019-03-01","راوتر لينكسس",2,90,180]
[null,null,null,null,null,null,null,1004,"2019-03-01","كيبل شبكة ",100,3,300]
[null,null,null,null,null,null,null,1004,"2019-03-01","توصيلة كهربائية 5 متر",2,5,10]
[null,null,null,null,null,null,null,1004,"2019-03-01","طابعة ليزر HP",2,1400,2800]
[null,null,null,null,null,null,null,1004,"2019-03-01","ماسح ضوئي ايبسون",1,240,240]
[]
[null,null,null,null,null,null,null,"المبلغ الإجمالي",null,null,null,null,7260]
[null,null,null,null,null,null,null,"ضريبة القيمة المضافة",null,null,null,null,363]
[null,null,null,null,null,null,null,"الإجمالي شامل الضريبة",null,null,null,null,7623]